Workbook

Sheet HOME
B1: ENERGY EFFICIENCY TOOLS FOR PUMPING SYSTEM
B2: VER_03/160424
B3: INTRODUCTION: This workbook consists of multiple tools that conduct Assessment of Pumping System, calculate Energy Performance of Pumps, and calculate Energy Saving Potentials in the System.
B6: HOW TO USE:
B7: 1. Insert data from your company in cells that are highlighted in white. 2. Results of calculations will be displayed in orange cells. 3. Examples of data and calculation are shown in each tool.
B8: SOURCES:
B9: 1. Grundfos Ecademy 2. Bureau of Energy Efficiency India 3. www.energy.gov
B10: WHO WE ARE:
B11: ESPIRE is a partnership project between the Training and Development Centers of the Bavarian Employers‘ Association (bfz) gGmbH and business associations in Lahore and Karachi in Pakistan. The objective of ESPIRE project is to support industries in Pakistan to work economically more efficiently and ecologically more sustainable and start making energy conservation and cleaner production part of their work routine. Main project partners are; Pakistan Association of Automotive Parts and Accessories Manufacturers (PAAPAM), Pakistan Hosiery Manufacturers Association (PHMA), Pakistan Readymade Garments Manufacturers and Exporters Association (PRGMEA), Small and Medium Enterprises Development Authority (SMEDA), Towel Manufacturers Association of Pakistan (TMA). The Project is funded by the German Federal Ministry for Economic Cooperation and Development (BMZ) via Sequa gGmbH.
B12: DISCLAIMER:
B13: The information, calculations and conclusions in this tool are based on the projects executed by the experts and consultant under Project ESPIRE by bfz gGmbH – International Division. Some sources (as mentioned above) were also consulted to validate the contents. The efficiency improvement measures proposed in this tool are tested and tried in many companies in Pakistan. However, implementation of these measures in any particular case should be based on real time data analysis by qualified engineers after judging financial viability. Bfz gGmbH – International Division and it's Project Partners in Pakistan accepts no liability whatsoever to any person, company or entity for any injury, loss or damage that may arise in connection with any misuse or reliance on the information. The tool is provided as a freeware. Users may make copies and distribute the tool without making any changes.
B14: CONTACT:
B15: Users may contact following for any clarification, suggestion and/or improvement in this tool;
B16: Muhammad Salman Butt Project Manager Project ESPIRE bfz gGmbH International Division 0092 300 4322343 | D16: Sajid Mahmood Lakhan Managing Director Green Energy Associates, Karachi 0092 321 2117115 sajid@gea.com.pk

Sheet 1| Checklist Pumping System
B2: CHECKLIST FOR PUMP & PUMPING SYSTEM
C3: ENERGY SAVING OPTIONS
B4: LEVEL | C4: DESIGN / PURCHASE | D4: RATING
B5: - | C5: Select pump size appropriate to the load for optimum efficiency. Avoid purchasing of oversized or undersized pumps. | D5: »
B6: - | C6: Select the pump type appropriate to the requirement i.e. axial, centrifugal etc. with right impeller size. | D6: »
B7: - | C7: Ensure that the selected pump is compatible with variable-speed drives. | D7: »
B8: - | C8: Ensure basic instrumentation of pumps [e.g. pressure gauges, flow meters, energy meters, etc.] | D8: »
B9: - | C9: Reduce system resistance by pressure drop assessment and selection of right pipe size and material. | D9: »
B10: - - | C10: Optimise the plant design and pipe layout to minimize pumping need and pressure losses. Maximize the pipe diameter. | D10: »
B11: - - | C11: Develop purchasing specifications of all pumps, including criterion to judge energy performance. | D11: »
B12: - - | C12: Setup multiple sized pumping system for varying flows. | D12: »
C13: USE | D13: RATING
B14: - | C14: Conduct water balance analysis to identify wastages and ensure that the system is balanced in order to minimize flows and reduce pump power requirements. | D14: »
B15: - | C15: Ensure that the pumping demand is reduced and system has a low required flow rate. | D15: »
B16: - | C16: Ensure that the operating pressure of the pumping system is kept low. | D16: »
B17: - | C17: Avoid using bypass lines and throttle valves. Instead minimise pressure losses through valves and fittings. | D17: »
B18: - | C18: Optimise number of stages in multi-stage pump in case of head margins. | D18: »
B19: - | C19: Increase fluid temperature differential to reduce pumping rates in case of heat exchangers. | D19: »
B20: - - | C20: Adapt to wide load variation with variable speed drives or sequenced control of multiple pumping units. | D20: »
B21: - - | C21: In the case of over designed pump, provide variable speed drive, or downsize / replace the impeller or replace it with the correct sized pump for efficient operation. | D21: »
B22: - - - | C22: Use booster pumps for small loads that require higher pressures or higher heads. | D22: »
C23: SAFETY & MAINTENANCE | D23: RATING
B24: - | C24: Regularly monitor pumping efficiency and energy performance of pumping system. | D24: »
B25: - | C25: Monitor vibration of pumps periodically, identify pumps with increased vibration and take immediate corrective and preventive action. | D25: »
B26: - | C26: Monitor differential head and temperature rise across the pump (also known as thermodynamic monitoring). | D26: »
B27: - | C27: Perform distribution system inspection for scaling or contaminant build-up. | D27: »
B28: - | C28: Check and maintain pump efficiency after repair or maintenance. | D28: »
B29: - | C29: Monitor leaks in pumps regularly and immediately fix identified leaks. | D29: »
B30: - | C30: Conduct bearing inspection for increased noise and repair / replace based on conditions. | D30: »
B31: - | C31: Ensure bearing lubrication replacement, once annually or semi-annually based on prevailing conditions or as per manufacturer's guidelines. | D31: »
B32: - | C32: Put pressure or flow sensors in the location that will help ensure process requirements are met without excess pumping energy. | D32: »
B33: - | C33: Replace worn impellers, especially in caustic or semi-solid applications. | D33: »
B34: - | C34: Inspect pumps for wear in seals, rings, impellers and bearings and take immediate corrective and preventive measures. | D34: »
B35: - | C35: Develop and implement a predictive and preventive maintenance programme. | D35: »
B36: - | C36: Develop guidelines for proactive repair/replace decisions based on operating and maintenance cost and energy performance. | D36: »
B38: LEVEL OF DIFFICULTY:
B39: - | C39: No/Low Cost or Short Term Investment [Pay-back period < 6 months]
B40: - - | C40: Medium Term Investment [Pay-back period < 18 months]
B41: - - - | C41: Long Term Investment or Needs Feasibility Study [Pay-back period > 18 months]
B43: RATING OF IMPLEMENTATION STATUS:
C44: Energy Saving Option has not been considered yet. | D44: 1
C45: Energy Saving Option is in the planning stage but not yet realized. | D45: 2
C46: Energy Saving Option is partially (not in all areas/ machines or not all the time) implemented/ realized. | D46: 3
C47: Energy Saving Option has been mostly implemented/ realized. | D47: 4
C48: Energy Saving Option is fully realized. | D48: 5
D49: »

Sheet 2| Pump Efficiency
B2: PUMPING EFFICIENCY CALCULATION
B3: ISSUE: Pumps are normally most ignored facility in a company. Companies normally rely on expertise of pump suppliers while making any decision in this area. WHAT WE DO HERE: Calculate Pumping Efficiency.
C4: Example | E4: Actual Motor Power
C5: 20 | F5: [kW] | G5: > | H5: Actual power (kW) consumed by motor of pump
E6: Motor Efficiency
C7: 0.925 | F7: [%] | G7: > | H7: Check Motor Efficiency from Manufacturer's datasheet | L7: =E23 -> 0 | M7: m
E8: Pump Shaft Power
C9: =C5*C7 -> 18.5 | E9: =E5*E7 -> 0 | F9: [kW] | G9: > | H9: = Actual Motor Power x Motor Efficiency | N9: =E25 -> 0 | O9: =F25 -> [bar]
E10: Electricity Unit Price
C11: 18 | F11: [Rs/kWh] | G11: > | H11: Electricity average unit price | J11: =L7+L15 -> 0 | K11: m
E12: Annual Operating Hours
C13: 4500 | F13: [h/yr] | G13: > | O13: =E29 -> 0 | P13: =F29 -> [m3/h]
E14: Fluid Density
C15: 1000 | F15: [kg/m3] | G15: > | H15: Water = 1000 kg/m3, Medium Strength Waste Water =~ 1030 kg/m3 | L15: =E21 -> 0 | M15: m
E16: Depth of suction vessel surface
C17: 20 | F17: [m of head] | G17: > | H17: Check in Drawings: Vertical distance from surface of source reservior / bore hole / suction vessel to ground surface [+ve if below surface, -ve if above surface, "0" for submersed pump]
E18: Height of Pump
C19: 1 | F19: [m of head] | G19: > | H19: Check in Drawings: Vertical distance from ground surface to centerline of pump [+ve if pump is above surface, -ve if below surface, "0" for submersed pump]
E20: Static Suction Head
C21: =C17+C19 -> 21 | E21: =E17+E19 -> 0 | F21: [m of head] | G21: > | H21: = Height of Pump + Depth of Vessel Surface
E22: Static Discharge Head
C23: 28 | F23: [m of head] | G23: > | H23: Check in drawings: Vertical Distance from centerline of pump to surface of delivery vessel / reservoir
E24: Pump Discharge Head (pressure)
C25: 3 | F25: [bar] | G25: > | H25: Pump Discharge Pressure from Pressure Gauge measurement at discharge flange
E26: Length of Discharge Pipe
C27: 5 | F27: [km] | G27: > | H27: Running length of the discharge pipe
E28: Pump Discharge Flow Rate
C29: 110 | F29: [m3/h] | G29: > | H29: Measure from flow meter or estimate
E30: Inlet Pipe Diameter
C31: 0.25 | F31: [m] | G31: >
E32: Outlet Pipe Diameter
C33: 0.15 | F33: [m] | G33: >
E34: Total Head
C35: =C$21+'4| Conversions'!C$9+'4| Conversions'!C$25 -> 51.72363418 | E35: =E$21+'4| Conversions'!E$9+'4| Conversions'!E$25 ->  | F35: [m of head] | G35: > | H35: = Static Suction Head + Total Discharge Head + Velocity Head Differential [Velocity Head Differential is calculated automatically]
E36: Pump Hydraulic Power Output
C37: =C35*'4| Conversions'!C14*C15*9.81/3600000 -> 15.50415934 | E37: =E35*'4| Conversions'!E14*E15*9.81/3600000 ->  | F37: [kW] | G37: > | H37: = Flow rate x Density x Total Head x g ÷ 3600000
E38: Pump Hydraulic Efficiency
C39: =C37/C9 -> 0.8380626673 | E39: =E37/E9 ->  | F39: [%] | G39: > | H39: = Pump Hydraulic Output ÷ Pump Shaft Power
E40: System Friction Losses (discharge side)
C41: ='4| Conversions'!C9-C23 -> 2.591 | E41: ='4| Conversions'!E9-E23 -> 0 | F41: [m of head] | G41: > | H41: = Pump discharge head - Static Discharge Head
E42: Friction Loss per km of Discharge Pipe
C43: =C41/C27 -> 0.5182 | E43: =E41/E27 ->  | F43: [m of head per km] | G43: > | H43: = System Friction Loss ÷ Length of Discharge Pipe
E44: Piping Efficiency
C45: =1-(('4| Conversions'!C9-C23)/'4| Conversions'!C9) -> 0.9153018862 | E45: =1-(('4| Conversions'!E9-E23)/'4| Conversions'!E9) ->  | F45: [%] | G45: > | H45: = 1 - (System Friction Loss ÷ Pump Discharge Head)
E46: Overall Efficiency
C47: =C45*C39*C7 -> 0.7095493146 | E47: =E45*E39*E7 ->  | F47: [%] | G47: > | H47: = Motor Efficiency x Pump Efficiency x Piping Efficiency
B50: OVERALL EFFICIENCY CLASSIFICATION:
C51: EFFICIENCY | D51: OPTIMIZATION GUIDLINES
C52: 0.8 | D52: System is runnning well. Continuously monitor energy performance
C53: 0.7 | D53: Install Motor Control System to Further optimize system efficiency
C54: 0.6 | D54: Install pipes having lesser friction losses, Improve Housekeeping
C55: 0.5 | D55: Install energy efficient motor, investigate option for using smaller pump
C56: 0.4 | D56: Carry out detailed assessment of pumping system
C57: 0.3 | D57: Consult Experts; Redesign pumping system
B59: HOW TO USE:
B60: 1. Insert data from your company in cells that are highlighted in white
B61: ADDITIONAL TIPS
B62: 1. Compare calculated efficiencies with worldcalss benchmark

Sheet 3| Pump Energy Performance
B2: PUMP ENERGY PERFORMANCE CALCULATION
B3: ISSUE: Pumps are big energy consumers but often ignored while monitoring energy perfromance. WHAT WE DO HERE: Develop Energy Performance Indicators, Calculate Electricity Consumption Breakdown.
C4: Example | E4: Annual Electricity Consumption
C5: ='2| Pump Efficiency'!C13*'2| Pump Efficiency'!C5 -> 90000 | E5: ='2| Pump Efficiency'!E13*'2| Pump Efficiency'!E5 -> 0 | F5: [kWh/yr] | G5: > | H5: = Actual Motor Power x Annual Operating Hours
E6: Annual Electricity Cost
C7: =C5*'2| Pump Efficiency'!C11 -> 1620000 | E7: =E5*'2| Pump Efficiency'!E11 -> 0 | F7: [Rs/yr] | G7: > | H7: = Annual Electricity Consumption x Electricity Unit Price
E8: Volume of Fluid Displaced
C9: ='2| Pump Efficiency'!C13*'4| Conversions'!C14 -> 495000 | E9: ='2| Pump Efficiency'!E13*'4| Conversions'!E14 -> 0 | F9: [m3/yr] | G9: > | H9: = Pump Discharge Flow rate x Annual Operating Hours
E10: Energy Performance Indicators (EnPIs)
E11: Specific Energy Consumption
C12: =C5/C9 -> 0.1818181818 | E12: =E5/E9 ->  | F12: [kWh/m3] | G12: > | H12: = Annual Electricity Consumption ÷ Volume of Fluid Displaced
E13: Specific Energy Consumption per meter of Head
C14: =C12*1000/('2| Pump Efficiency'!C21+'2| Pump Efficiency'!C23) -> 3.710575139 | E14: =E12*1000/('2| Pump Efficiency'!E21+'2| Pump Efficiency'!E23) ->  | F14: [kWh/1000 m3/m] | G14: > | H14: = kWh/m3 x 1000 ÷ (Static Suction Head + Static Discharge Head)
E15: Specific Energy Cost
C16: =C7/C9 -> 3.272727273 | E16: =E7/E9 ->  | F16: [Rs/m3] | G16: > | H16: = Annual Electricity Cost ÷ Volume of Fluid Displaced
E17: Specific Energy Cost per meter of Head
C18: =C16*1000/('2| Pump Efficiency'!C21+'2| Pump Efficiency'!C23) -> 66.7903525 | E18: =E16*1000/('2| Pump Efficiency'!E21+'2| Pump Efficiency'!E23) ->  | F18: [Rs/1000 m3/m] | G18: > | H18: = Rs/m3 x 1000 ÷ (Static Suction Head + Static Discharge Head)
E21: System Losses
E22: Motor Efficiency Loss
C23: =C7*(1-'2| Pump Efficiency'!C7) -> 121500 | E23: =E7*(1-'2| Pump Efficiency'!E7) -> 0 | F23: [Rs/yr] | G23: > | H23: Loss due to inefficiency of motor
E24: Pump Efficiency Loss
C25: =C7*(1-'2| Pump Efficiency'!C39) -> 262338.479 | E25: =E7*(1-'2| Pump Efficiency'!E39) ->  | F25: [Rs/yr] | G25: > | H25: Loss due to inefficiency of pump
E26: Piping Efficiency Loss
C27: =C7*(1-'2| Pump Efficiency'!C45) -> 137210.9444 | E27: =E7*(1-'2| Pump Efficiency'!E45) ->  | F27: [Rs/yr] | G27: > | H27: Loss due to inefficiency of piping
E28: Total Loss
C29: =SUM(C23:C27) -> 521049.4234 | E29: =SUM(E23:E27) ->  | F29: [Rs/yr] | G29: > | H29: = Sum all losses
E30: Useful Work Done
C31: =C7-C29 -> 1098950.577 | E31: =E7-E29 ->  | F31: [Rs/yr] | G31: > | H31: = Annual Electricity Cost - Total Loss
B34: HOW TO USE:
B35: 1. This sheet does not require any data entry.

Sheet Dropdown (hidden)
B2: Discharge Rate | C2: Pressure
B3: [m3/h] | C3: [m of head]
B4: [g/h] | C4: [bar]
C5: [psi]

Sheet 4| Conversions
B2: Conversions for Calculations
E3: Discharge Head
C4: Example | E4: bar to [m of head]
C5: =IF('2| Pump Efficiency'!F25="[bar]", '2| Pump Efficiency'!C25*10.197, "-") -> 30.591 | E5: =IF('2| Pump Efficiency'!F25="[bar]", '2| Pump Efficiency'!E25*10.197, "-") -> 0 | F5: [m of head] | H5: 1 bar = 10.197 m of head
E6: psi to [m of head]
C7: =IF('2| Pump Efficiency'!F25="[psi]", '2| Pump Efficiency'!C25*0.703249614902049, "-") -> - | E7: =IF('2| Pump Efficiency'!F25="[psi]", '2| Pump Efficiency'!E25*0.703249614902049, "-") -> - | F7: [m of head] | H7: 1 psi = 0.703 m of head
E8: Final Value
C9: =IF(C5="-",IF(C7="-",'2| Pump Efficiency'!C25,C7),C5) -> 30.591 | E9: =IF(E5="-",IF(E7="-",'2| Pump Efficiency'!E25,E7),E5) -> 0 | F9: [m of head] | H9: Value for calculations
E10: Flow Rate
E11: g/h to m3/h
C12: =IF('2| Pump Efficiency'!F29="[g/h]", '2| Pump Efficiency'!C29*0.004546092, "-") -> - | E12: =IF('2| Pump Efficiency'!F29="[g/h]", '2| Pump Efficiency'!E29*0.004546092, "-") -> - | F12: [m3/h] | H12: 1 g/h = 0.004546092 m3/h
E13: Final Value
C14: =IF(C12="-",'2| Pump Efficiency'!C29,C12) -> 110 | E14: =IF(E12="-",'2| Pump Efficiency'!E29,E12) -> 0 | F14: [m3/h] | H14: Value for calculations
E15: Velocity Head Calculation
E16: Inlet Velocity (Vi)
C17: =$C$14/((PI()*('2| Pump Efficiency'!C31/2)^2)*3600) -> 0.6224726663 | E17: =$E$14/((PI()*('2| Pump Efficiency'!E31/2)^2)*3600) ->  | F17: [m/s] | H17: = Discharge flow rate ÷ Inlet pipe area
E18: Outlet Velocity (Vo)
C19: =$C$14/((PI()*('2| Pump Efficiency'!C33/2)^2)*3600) -> 1.72909074 | E19: =$E$14/((PI()*('2| Pump Efficiency'!E33/2)^2)*3600) ->  | F19: [m/s] | H19: = Discharge flow rate ÷ outlet pipe area
E20: Inlet Velocity head (H-Vi)
C21: =((C17^2)/(2*9.81)) -> 0.01974883896 | E21: =((E17^2)/(2*9.81)) ->  | F21: [m of head] | H21: = Vi² ÷ 2g
E22: Outlet Velocity head (H-Vo)
C23: =((C19^2)/(2*9.81)) -> 0.1523830166 | E23: =((E19^2)/(2*9.81)) ->  | F23: [m of head] | H23: = Vo² ÷ 2g
E24: Velocity Head Difference
C25: =C23-C21 -> 0.1326341777 | E25: =E23-E21 ->  | F25: [m of head] | H25: = H-Vi - H-Vo
